[Event "*** Titled Tuesday Blitz"]
[Site "Chess.com"]
[Date "2020.05.05"]
[Round "2"]
[White "Kate1606"]
[Black "BocharovD"]
[Result "0-1"]
[WhiteElo "2107"]
[BlackElo "2882"]
[TimeControl "180+1"]
[EndTime "10:17:01 PDT"]
[Termination "BocharovD won by checkmate"]

1. e4 {[%clk 0:03:00.9]} 1... c5 {[%clk 0:02:58.4]} 2. Nc3 {[%clk 0:03:00.6]}
2... d6 {[%clk 0:02:58.5]} 3. f4 {[%clk 0:03:01.5]} 3... g6 {[%clk 0:02:57.9]}
4. Nf3 {[%clk 0:03:02]} 4... Bg7 {[%clk 0:02:58.2]} 5. Bb5+ {[%clk 0:03:01.5]}
5... Bd7 {[%clk 0:02:58]} 6. Bc4 {[%clk 0:03:02.2]} 6... Nc6 {[%clk 0:02:57.5]}
7. O-O {[%clk 0:03:02.6]} 7... Na5 {[%clk 0:02:56.8]} 8. Bb3 {[%clk 0:02:57.8]}
8... Nxb3 {[%clk 0:02:54.5]} 9. axb3 {[%clk 0:02:58.7]} 9... Nf6 {[%clk
0:02:55]} 10. e5 {[%clk 0:02:54.2]} 10... dxe5 {[%clk 0:02:54.6]} 11. fxe5
{[%clk 0:02:54.8]} 11... Ng4 {[%clk 0:02:54.8]} 12. Qe2 {[%clk 0:02:38.8]} 12...
Bc6 {[%clk 0:02:53.6]} 13. e6 {[%clk 0:02:15.4]} 13... f5 {[%clk 0:02:52.8]} 14.
Ng5 {[%clk 0:02:06.7]} 14... O-O {[%clk 0:02:51.2]} 15. d3 {[%clk 0:01:38.4]}
15... h6 {[%clk 0:02:18.1]} 16. Nf7 {[%clk 0:01:36.9]} 16... Qd4+ {[%clk
0:02:17.9]} 17. Kh1 {[%clk 0:01:36]} 17... Rxf7 {[%clk 0:02:08.2]} 18. exf7+
{[%clk 0:01:35.3]} 18... Kxf7 {[%clk 0:02:09.1]} 19. h3 {[%clk 0:01:29.3]} 19...
Nf6 {[%clk 0:02:07.8]} 20. Be3 {[%clk 0:01:27.4]} 20... Qd6 {[%clk 0:02:00.3]}
21. Bf4 {[%clk 0:01:22.7]} 21... Qd7 {[%clk 0:02:00.3]} 22. Rfe1 {[%clk
0:01:17.7]} 22... Re8 {[%clk 0:01:57.1]} 23. Rxa7 {[%clk 0:01:15.4]} 23... e5
{[%clk 0:01:55.9]} 24. Be3 {[%clk 0:00:57.3]} 24... f4 {[%clk 0:01:53.1]} 25.
Bxc5 {[%clk 0:00:57.4]} 25... Qxh3+ {[%clk 0:01:52.4]} 26. Kg1 {[%clk
0:00:56.6]} 26... Qh4 {[%clk 0:01:52.4]} 27. Ne4 {[%clk 0:00:51.2]} 27... Ng4
{[%clk 0:01:51.1]} 28. Nd6+ {[%clk 0:00:48.2]} 28... Kg8 {[%clk 0:01:45.7]} 29.
Qd2 {[%clk 0:00:28.3]} 29... Qh2+ {[%clk 0:01:39]} 30. Kf1 {[%clk 0:00:28.7]}
30... Rf8 {[%clk 0:01:38.5]} 31. Ne4 {[%clk 0:00:24.8]} 31... f3 {[%clk
0:01:36.4]} 32. gxf3 {[%clk 0:00:20.2]} 32... Rxf3+ {[%clk 0:01:34.1]} 33. Bf2
{[%clk 0:00:19.7]} 33... Nxf2 {[%clk 0:01:32.8]} 34. Nxf2 {[%clk 0:00:18.9]}
34... Qh1+ {[%clk 0:01:30.3]} 35. Ke2 {[%clk 0:00:19.1]} 35... Rxf2+ {[%clk
0:01:30.8]} 36. Kxf2 {[%clk 0:00:19.3]} 36... Qg2+ {[%clk 0:01:30.7]} 37. Ke3
{[%clk 0:00:19.9]} 37... Qf3# {[%clk 0:01:31.6]} 0-1

[Event "*** Titled Tuesday Blitz"]
[Site "Chess.com"]
[Date "2020.05.05"]
[Round "2"]
[White "Lion-Al-Messi"]
[Black "IMinTheWings"]
[Result "1-0"]
[WhiteElo "2416"]
[BlackElo "2173"]
[TimeControl "180+1"]
[EndTime "10:17:01 PDT"]
[Termination "Lion-Al-Messi won by checkmate"]

1. d4 {[%clk 0:03:00.9]} 1... Nf6 {[%clk 0:02:59.8]} 2. Nf3 {[%clk 0:03:01.2]}
2... e6 {[%clk 0:02:59.5]} 3. Nc3 {[%clk 0:03:01.2]} 3... c5 {[%clk 0:02:57.6]}
4. d5 {[%clk 0:02:58.4]} 4... Bd6 {[%clk 0:02:41.2]} 5. e4 {[%clk 0:02:57]} 5...
Bc7 {[%clk 0:02:32.3]} 6. d6 {[%clk 0:02:55.3]} 6... Ba5 {[%clk 0:02:32.6]} 7.
e5 {[%clk 0:02:55.2]} 7... Ne4 {[%clk 0:02:22.8]} 8. Bd3 {[%clk 0:02:53.3]} 8...
Nxc3 {[%clk 0:02:16.8]} 9. bxc3 {[%clk 0:02:54.2]} 9... Bxc3+ {[%clk 0:02:17]}
10. Bd2 {[%clk 0:02:54.2]} 10... Bxa1 {[%clk 0:02:16.7]} 11. Qxa1 {[%clk
0:02:55.1]} 11... Nc6 {[%clk 0:01:47.4]} 12. O-O {[%clk 0:02:54.2]} 12... a6
{[%clk 0:01:44.5]} 13. c4 {[%clk 0:02:53.3]} 13... Rb8 {[%clk 0:01:39.2]} 14. a4
{[%clk 0:02:52.2]} 14... b5 {[%clk 0:01:34.6]} 15. axb5 {[%clk 0:02:51.6]} 15...
axb5 {[%clk 0:01:34.8]} 16. cxb5 {[%clk 0:02:52.5]} 16... Nb4 {[%clk 0:01:17.1]}
17. Bc4 {[%clk 0:02:45.1]} 17... Bb7 {[%clk 0:01:15.7]} 18. Qc3 {[%clk
0:02:40.1]} 18... f6 {[%clk 0:01:02.2]} 19. Bf4 {[%clk 0:02:25.4]} 19... g5
{[%clk 0:00:45]} 20. Be3 {[%clk 0:02:18.7]} 20... g4 {[%clk 0:00:43]} 21. Nd2
{[%clk 0:02:11.4]} 21... Nd5 {[%clk 0:00:30.8]} 22. Bxd5 {[%clk 0:02:09.7]}
22... Bxd5 {[%clk 0:00:31.3]} 23. exf6 {[%clk 0:02:09.9]} 23... Rxb5 {[%clk
0:00:28.8]} 24. Qe5 {[%clk 0:02:02.9]} 24... h5 {[%clk 0:00:24.8]} 25. Qg5
{[%clk 0:01:54.3]} 25... e5 {[%clk 0:00:10.3]} 26. Qxe5+ {[%clk 0:01:46.7]}
26... Be6 {[%clk 0:00:10.7]} 27. Ne4 {[%clk 0:01:44.6]} 27... Kf8 {[%clk
0:00:06.7]} 28. Qg5 {[%clk 0:01:42.5]} 28... Rh7 {[%clk 0:00:04.7]} 29. Qg6
{[%clk 0:01:40.6]} 29... Bg8 {[%clk 0:00:03.9]} 30. Bh6+ {[%clk 0:01:32.6]}
30... Rxh6 {[%clk 0:00:04.4]} 31. Qxh6+ {[%clk 0:01:33.5]} 31... Ke8 {[%clk
0:00:03.8]} 32. Ng5 {[%clk 0:01:32.8]} 32... c4 {[%clk 0:00:02.8]} 33. Re1+
{[%clk 0:01:32.2]} 33... Be6 {[%clk 0:00:02.2]} 34. Qh8# {[%clk 0:01:30.6]} 1-0

[Event "*** Titled Tuesday Blitz"]
[Site "Chess.com"]
[Date "2020.05.05"]
[Round "2"]
[White "Zq1"]
[Black "DFeco"]
[Result "1-0"]
[WhiteElo "2542"]
[BlackElo "2209"]
[TimeControl "180+1"]
[EndTime "10:17:05 PDT"]
[Termination "Zq1 won by resignation"]

1. d4 {[%clk 0:03:00.9]} 1... d5 {[%clk 0:02:59.6]} 2. c4 {[%clk 0:02:57.5]}
2... dxc4 {[%clk 0:02:57.7]} 3. e4 {[%clk 0:02:56.2]} 3... e5 {[%clk 0:02:51.9]}
4. Nf3 {[%clk 0:02:55.2]} 4... exd4 {[%clk 0:02:50]} 5. Qxd4 {[%clk 0:02:54.6]}
5... Qxd4 {[%clk 0:02:49.2]} 6. Nxd4 {[%clk 0:02:54.3]} 6... Bc5 {[%clk
0:02:46.2]} 7. Be3 {[%clk 0:02:53.1]} 7... Nf6 {[%clk 0:02:38.6]} 8. Nc3 {[%clk
0:02:51.7]} 8... O-O {[%clk 0:02:32.4]} 9. Bxc4 {[%clk 0:02:49.9]} 9... Ng4
{[%clk 0:02:23.5]} 10. Nd5 {[%clk 0:02:39.7]} 10... Nxe3 {[%clk 0:02:13.5]} 11.
fxe3 {[%clk 0:02:38.9]} 11... Na6 {[%clk 0:02:08.7]} 12. Ke2 {[%clk 0:02:30]}
12... c6 {[%clk 0:02:03.5]} 13. Nc3 {[%clk 0:02:25.3]} 13... Nc7 {[%clk
0:02:00.4]} 14. Rad1 {[%clk 0:02:22.3]} 14... Bxd4 {[%clk 0:01:32.2]} 15. Rxd4
{[%clk 0:02:20.6]} 15... b5 {[%clk 0:01:32]} 16. Bb3 {[%clk 0:02:17.7]} 16... c5
{[%clk 0:01:31.9]} 17. Rd6 {[%clk 0:02:07.8]} 17... c4 {[%clk 0:01:28.9]} 18.
Bc2 {[%clk 0:02:06.9]} 18... b4 {[%clk 0:01:22.8]} 19. Nd5 {[%clk 0:02:02]}
19... Nb5 {[%clk 0:01:20.3]} 20. Rc6 {[%clk 0:01:52.1]} 20... Bg4+ {[%clk
0:01:19.4]} 21. Kf2 {[%clk 0:01:48.9]} 21... c3 {[%clk 0:01:05]} 22. bxc3 {[%clk
0:01:47.7]} 22... bxc3 {[%clk 0:01:03.2]} 23. a4 {[%clk 0:01:39.7]} 23... Na3
{[%clk 0:00:54.5]} 24. Bd3 {[%clk 0:01:39]} 24... c2 {[%clk 0:00:39.5]} 25. Rc3
{[%clk 0:01:37.8]} 25... Nb1 {[%clk 0:00:26]} 26. Rxc2 {[%clk 0:01:34.1]} 26...
Rab8 {[%clk 0:00:25.5]} 27. Rcc1 {[%clk 0:01:26.1]} 27... Na3 {[%clk 0:00:20.6]}
28. Rc3 {[%clk 0:01:24.5]} 28... Rb2+ {[%clk 0:00:18.3]} 29. Kg3 {[%clk
0:01:23.1]} 29... f5 {[%clk 0:00:16.5]} 30. exf5 {[%clk 0:01:19.5]} 30... Bxf5
{[%clk 0:00:14.9]} 31. Bxf5 {[%clk 0:01:18.8]} 31... Rxf5 {[%clk 0:00:11.7]} 32.
Ne7+ {[%clk 0:01:18.3]} 1-0

[Event "*** Titled Tuesday Blitz"]
[Site "Chess.com"]
[Date "2020.05.05"]
[Round "2"]
[White "Bossche-CM"]
[Black "AwesomeMango"]
[Result "1-0"]
[WhiteElo "2457"]
[BlackElo "2218"]
[TimeControl "180+1"]
[EndTime "10:17:09 PDT"]
[Termination "Bossche-CM won by resignation"]

1. e4 {[%clk 0:03:00.9]} 1... c5 {[%clk 0:02:59.6]} 2. b3 {[%clk 0:03:00.6]}
2... e6 {[%clk 0:02:58.4]} 3. Bb2 {[%clk 0:02:58.8]} 3... d5 {[%clk 0:02:57.7]}
4. exd5 {[%clk 0:02:42.3]} 4... exd5 {[%clk 0:02:57.1]} 5. Bb5+ {[%clk
0:02:41.2]} 5... Bd7 {[%clk 0:02:55.6]} 6. Qe2+ {[%clk 0:02:38.3]} 6... Qe7
{[%clk 0:02:54.3]} 7. Bxd7+ {[%clk 0:02:38.2]} 7... Nxd7 {[%clk 0:02:52.9]} 8.
d4 {[%clk 0:02:38.7]} 8... Ngf6 {[%clk 0:02:42.2]} 9. dxc5 {[%clk 0:02:38.2]}
9... Qxe2+ {[%clk 0:02:39.5]} 10. Nxe2 {[%clk 0:02:38.3]} 10... Bxc5 {[%clk
0:02:39.8]} 11. Nbc3 {[%clk 0:02:37.9]} 11... O-O {[%clk 0:02:35.6]} 12. f3
{[%clk 0:02:28.2]} 12... Rfe8 {[%clk 0:02:23.6]} 13. O-O-O {[%clk 0:01:49.1]}
13... Nb6 {[%clk 0:01:40.7]} 14. Ng3 {[%clk 0:01:33.6]} 14... Rac8 {[%clk
0:01:27]} 15. Nf5 {[%clk 0:01:29.8]} 15... g6 {[%clk 0:01:22.9]} 16. Ng3 {[%clk
0:01:29.1]} 16... Be3+ {[%clk 0:01:15.5]} 17. Kb1 {[%clk 0:01:28.6]} 17... a6
{[%clk 0:01:01.6]} 18. Nb5 {[%clk 0:01:04.5]} 18... Re6 {[%clk 0:00:48.5]} 19.
Nd4 {[%clk 0:01:03.2]} 19... Ree8 {[%clk 0:00:40.1]} 20. Ndf5 {[%clk 0:00:57.9]}
20... Nfd7 {[%clk 0:00:32.5]} 21. Nd6 {[%clk 0:00:57.1]} 21... Nc5 {[%clk
0:00:23.3]} 22. Nxe8 {[%clk 0:00:54.8]} 22... Rxe8 {[%clk 0:00:22.9]} 23. Rhe1
{[%clk 0:00:54]} 23... f5 {[%clk 0:00:16.6]} 24. Bd4 {[%clk 0:00:50.8]} 1-0

[Event "*** Titled Tuesday Blitz"]
[Site "Chess.com"]
[Date "2020.05.05"]
[Round "2"]
[White "Sanyura"]
[Black "MihailNik"]
[Result "0-1"]
[WhiteElo "2491"]
[BlackElo "2720"]
[TimeControl "180+1"]
[EndTime "10:17:11 PDT"]
[Termination "MihailNik won by resignation"]

1. e4 {[%clk 0:03:00.9]} 1... e6 {[%clk 0:02:58.5]} 2. d4 {[%clk 0:02:59.2]}
2... d5 {[%clk 0:02:59.1]} 3. Nc3 {[%clk 0:02:59.7]} 3... dxe4 {[%clk
0:02:58.2]} 4. Nxe4 {[%clk 0:02:59.2]} 4... Nd7 {[%clk 0:02:58.9]} 5. Bd3 {[%clk
0:02:58.2]} 5... Ngf6 {[%clk 0:02:59.2]} 6. Bg5 {[%clk 0:02:55.1]} 6... Be7
{[%clk 0:02:59.1]} 7. Qe2 {[%clk 0:02:55.2]} 7... h6 {[%clk 0:02:50.8]} 8. Bxf6
{[%clk 0:02:43.3]} 8... Nxf6 {[%clk 0:02:51.7]} 9. O-O-O {[%clk 0:02:42.8]} 9...
O-O {[%clk 0:02:48.1]} 10. Nxf6+ {[%clk 0:02:41.1]} 10... Bxf6 {[%clk
0:02:47.7]} 11. Qe4 {[%clk 0:02:41.7]} 11... g6 {[%clk 0:02:47.1]} 12. c3 {[%clk
0:02:41.9]} 12... Qd5 {[%clk 0:02:46.1]} 13. Qxd5 {[%clk 0:02:31.9]} 13... exd5
{[%clk 0:02:47]} 14. Nf3 {[%clk 0:02:32.2]} 14... Be6 {[%clk 0:02:30.5]} 15.
Rde1 {[%clk 0:02:30.8]} 15... Kg7 {[%clk 0:02:30.5]} 16. Kc2 {[%clk 0:02:29.9]}
16... b6 {[%clk 0:02:29.7]} 17. Ne5 {[%clk 0:02:29.5]} 17... Rfe8 {[%clk
0:02:21]} 18. Bb5 {[%clk 0:02:26.6]} 18... Rec8 {[%clk 0:02:17.3]} 19. Bc6
{[%clk 0:02:22.5]} 19... Rab8 {[%clk 0:02:15.5]} 20. Re2 {[%clk 0:02:15.1]}
20... Rd8 {[%clk 0:02:14.4]} 21. Rhe1 {[%clk 0:02:11.6]} 21... Rd6 {[%clk
0:02:13.5]} 22. Ba4 {[%clk 0:02:11.2]} 22... c5 {[%clk 0:02:13.2]} 23. Kb1
{[%clk 0:01:21.9]} 23... c4 {[%clk 0:02:06.6]} 24. Bc2 {[%clk 0:01:21.3]} 24...
Bc8 {[%clk 0:02:00.6]} 25. f3 {[%clk 0:00:41]} 25... b5 {[%clk 0:02:00.3]} 26.
a3 {[%clk 0:00:32.1]} 26... a5 {[%clk 0:01:55.9]} 27. Ng4 {[%clk 0:00:17.2]}
27... Bd8 {[%clk 0:01:55.1]} 28. Re8 {[%clk 0:00:14.1]} 28... Bd7 {[%clk
0:01:53]} 29. R8e2 {[%clk 0:00:09.4]} 29... b4 {[%clk 0:01:53]} 30. axb4 {[%clk
0:00:08.4]} 30... axb4 {[%clk 0:01:52.9]} 31. cxb4 {[%clk 0:00:05.9]} 31... Rxb4
{[%clk 0:01:53.8]} 32. Ne5 {[%clk 0:00:05.1]} 32... Bc8 {[%clk 0:01:50.7]} 33.
Kc1 {[%clk 0:00:05.1]} 33... Bg5+ {[%clk 0:01:46.1]} 34. Kb1 {[%clk 0:00:03.8]}
34... Rdb6 {[%clk 0:01:45.8]} 35. b3 {[%clk 0:00:02.8]} 35... cxb3 {[%clk
0:01:41.5]} 36. Bd3 {[%clk 0:00:03.2]} 36... b2 {[%clk 0:01:40.8]} 37. g3 {[%clk
0:00:02.4]} 37... Bc1 {[%clk 0:01:40.2]} 38. Bc2 {[%clk 0:00:01.9]} 38... Ra6
{[%clk 0:01:38.9]} 39. Bf5 {[%clk 0:00:01.6]} 0-1

[Event "*** Titled Tuesday Blitz"]
[Site "Chess.com"]
[Date "2020.05.05"]
[Round "2"]
[White "grunbergmihai"]
[Black "Gromes7"]
[Result "1-0"]
[WhiteElo "2386"]
[BlackElo "2099"]
[TimeControl "180+1"]
[EndTime "10:17:12 PDT"]
[Termination "grunbergmihai won by resignation"]

1. Nf3 {[%clk 0:03:00.9]} 1... Nf6 {[%clk 0:02:58.8]} 2. d4 {[%clk 0:03:01.8]}
2... g6 {[%clk 0:02:58.4]} 3. g3 {[%clk 0:03:02.7]} 3... Bg7 {[%clk 0:02:58.6]}
4. Bg2 {[%clk 0:03:03.6]} 4... O-O {[%clk 0:02:59.1]} 5. O-O {[%clk 0:03:04.5]}
5... d6 {[%clk 0:02:59.5]} 6. c4 {[%clk 0:03:05.4]} 6... c5 {[%clk 0:02:59.5]}
7. dxc5 {[%clk 0:03:03]} 7... dxc5 {[%clk 0:02:59]} 8. Be3 {[%clk 0:03:02.3]}
8... Qc7 {[%clk 0:02:52.4]} 9. Nc3 {[%clk 0:03:01.2]} 9... a6 {[%clk 0:02:51.9]}
10. Bf4 {[%clk 0:02:57.4]} 10... Qd8 {[%clk 0:02:42.6]} 11. Ne5 {[%clk
0:02:55.1]} 11... Nh5 {[%clk 0:02:32]} 12. Na4 {[%clk 0:02:48.8]} 12... Nxf4
{[%clk 0:02:30.1]} 13. gxf4 {[%clk 0:02:48.4]} 13... Qc7 {[%clk 0:02:25.3]} 14.
Qd5 {[%clk 0:02:36.8]} 14... Nd7 {[%clk 0:02:04.3]} 15. Nxd7 {[%clk 0:02:33.2]}
15... Bxd7 {[%clk 0:02:03.5]} 16. Nxc5 {[%clk 0:02:30]} 16... Bc6 {[%clk
0:01:52.1]} 17. Qg5 {[%clk 0:02:29.3]} 17... Bxg2 {[%clk 0:01:46.9]} 18. Kxg2
{[%clk 0:02:29]} 18... b6 {[%clk 0:01:40.3]} 19. Nd3 {[%clk 0:02:24.5]} 19...
Qxc4 {[%clk 0:01:34.4]} 20. Qg3 {[%clk 0:02:21]} 20... Rac8 {[%clk 0:01:17.6]}
21. Rfc1 {[%clk 0:02:19.3]} 21... Qb5 {[%clk 0:01:17.5]} 22. Qf3 {[%clk
0:02:12.1]} 22... Rc4 {[%clk 0:01:11.3]} 23. Rxc4 {[%clk 0:02:09.2]} 23... Qxc4
{[%clk 0:01:11.4]} 24. Rc1 {[%clk 0:02:10.1]} 24... Qxa2 {[%clk 0:01:10.9]} 25.
Rc7 {[%clk 0:02:06.7]} 25... e6 {[%clk 0:01:06.6]} 26. Qb7 {[%clk 0:02:02.9]}
26... b5 {[%clk 0:00:58.5]} 27. Rc6 {[%clk 0:02:01.6]} 27... Bxb2 {[%clk
0:00:53.6]} 28. Rc2 {[%clk 0:01:59.2]} 28... Qa4 {[%clk 0:00:44.8]} 29. Rxb2
{[%clk 0:01:57.3]} 29... h5 {[%clk 0:00:43.2]} 30. Rb4 {[%clk 0:01:54.8]} 30...
Qd1 {[%clk 0:00:42.1]} 31. Re4 {[%clk 0:01:50.1]} 31... Qa1 {[%clk 0:00:38.1]}
32. Ne5 {[%clk 0:01:47.6]} 32... a5 {[%clk 0:00:19.4]} 33. Qxb5 {[%clk
0:01:45.8]} 33... a4 {[%clk 0:00:17]} 34. Rxa4 {[%clk 0:01:44.3]} 34... Qd1
{[%clk 0:00:16.3]} 35. Re4 {[%clk 0:01:42.3]} 35... Kg7 {[%clk 0:00:13.7]} 36.
Qd3 {[%clk 0:01:41.3]} 36... Qa1 {[%clk 0:00:12.5]} 37. Rd4 {[%clk 0:01:39.3]}
37... Qa8+ {[%clk 0:00:11.1]} 38. Qf3 {[%clk 0:01:38.3]} 38... Qa1 {[%clk
0:00:10.5]} 39. Rd7 {[%clk 0:01:37.7]} 39... Kg8 {[%clk 0:00:10.5]} 40. Qb7
{[%clk 0:01:35.9]} 40... Qd1 {[%clk 0:00:08.9]} 41. Rxd1 {[%clk 0:01:35]} 1-0

[Event "*** Titled Tuesday Blitz"]
[Site "Chess.com"]
[Date "2020.05.05"]
[Round "2"]
[White "ajkom197"]
[Black "GM_LOADING"]
[Result "1-0"]
[WhiteElo "2306"]
[BlackElo "2534"]
[TimeControl "180+1"]
[EndTime "10:17:15 PDT"]
[Termination "ajkom197 won by resignation"]

1. c4 {[%clk 0:02:58.5]} 1... e6 {[%clk 0:02:59.4]} 2. g3 {[%clk 0:02:58.3]}
2... Nf6 {[%clk 0:02:59.4]} 3. Bg2 {[%clk 0:02:58.7]} 3... d5 {[%clk 0:02:59.5]}
4. Nf3 {[%clk 0:02:58.5]} 4... d4 {[%clk 0:03:00]} 5. O-O {[%clk 0:02:56.7]}
5... c5 {[%clk 0:03:00.6]} 6. b4 {[%clk 0:02:45.8]} 6... cxb4 {[%clk 0:03:00.4]}
7. a3 {[%clk 0:02:45.3]} 7... Nc6 {[%clk 0:03:00.8]} 8. d3 {[%clk 0:02:44.9]}
8... bxa3 {[%clk 0:02:59.8]} 9. Nbd2 {[%clk 0:02:38.1]} 9... e5 {[%clk
0:02:52.3]} 10. Qb3 {[%clk 0:02:29.2]} 10... Bd6 {[%clk 0:02:47.7]} 11. Bxa3
{[%clk 0:02:26.3]} 11... Qe7 {[%clk 0:02:47.7]} 12. Ng5 {[%clk 0:02:24.2]} 12...
O-O {[%clk 0:02:44.6]} 13. Bxd6 {[%clk 0:02:19.1]} 13... Qxd6 {[%clk 0:02:43.6]}
14. Rfb1 {[%clk 0:02:18.8]} 14... b6 {[%clk 0:02:34.1]} 15. Qb5 {[%clk
0:01:57.9]} 15... Bd7 {[%clk 0:02:25.8]} 16. c5 {[%clk 0:01:40]} 16... Qxc5
{[%clk 0:02:03.1]} 17. Qxc5 {[%clk 0:01:37.1]} 17... bxc5 {[%clk 0:02:04]} 18.
Rb7 {[%clk 0:01:34.3]} 18... Rfc8 {[%clk 0:02:00.7]} 19. Nde4 {[%clk 0:01:30.7]}
19... Nxe4 {[%clk 0:01:59.3]} 20. Nxe4 {[%clk 0:01:26.3]} 20... Rd8 {[%clk
0:01:20.3]} 21. Nxc5 {[%clk 0:01:23.3]} 21... Be8 {[%clk 0:01:18.9]} 22. Na6
{[%clk 0:01:12.9]} 22... Rac8 {[%clk 0:00:59.4]} 23. Bh3 {[%clk 0:01:00.3]}
23... Ra8 {[%clk 0:00:54.4]} 24. Bg2 {[%clk 0:00:59.1]} 24... Rd6 {[%clk
0:00:42.4]} 25. Nc7 {[%clk 0:00:55.4]} 25... Rc8 {[%clk 0:00:39.7]} 26. Nxe8
{[%clk 0:00:53.2]} 26... Rxe8 {[%clk 0:00:40.6]} 27. Ra6 {[%clk 0:00:49.1]} 1-0

[Event "*** Titled Tuesday Blitz"]
[Site "Chess.com"]
[Date "2020.05.05"]
[Round "2"]
[White "VojtechPlat"]
[Black "Kimster98"]
[Result "1-0"]
[WhiteElo "2795"]
[BlackElo "2527"]
[TimeControl "180+1"]
[EndTime "10:17:17 PDT"]
[Termination "VojtechPlat won by resignation"]

1. e4 {[%clk 0:03:00.9]} 1... e5 {[%clk 0:02:49.4]} 2. Nf3 {[%clk 0:03:00.4]}
2... Nf6 {[%clk 0:02:49.9]} 3. Nxe5 {[%clk 0:02:59.5]} 3... d6 {[%clk
0:02:49.6]} 4. Nf3 {[%clk 0:02:59.8]} 4... Nxe4 {[%clk 0:02:49.9]} 5. d3 {[%clk
0:03:00.3]} 5... Nf6 {[%clk 0:02:48]} 6. d4 {[%clk 0:03:00.7]} 6... d5 {[%clk
0:02:44.7]} 7. Bd3 {[%clk 0:03:01.1]} 7... Bd6 {[%clk 0:02:45.2]} 8. Qe2+ {[%clk
0:03:01.4]} 8... Be6 {[%clk 0:02:23.9]} 9. Ng5 {[%clk 0:03:00.8]} 9... Qe7
{[%clk 0:02:23]} 10. Nxe6 {[%clk 0:03:00.8]} 10... fxe6 {[%clk 0:02:21.6]} 11.
c3 {[%clk 0:03:01.1]} 11... c5 {[%clk 0:02:19.8]} 12. dxc5 {[%clk 0:03:00.1]}
12... Bxc5 {[%clk 0:02:19.5]} 13. Bg5 {[%clk 0:03:00.7]} 13... O-O {[%clk
0:02:14.5]} 14. Nd2 {[%clk 0:03:00.6]} 14... Nc6 {[%clk 0:01:57]} 15. Nb3 {[%clk
0:02:59.1]} 15... Bd6 {[%clk 0:01:54]} 16. O-O-O {[%clk 0:02:58.7]} 16... Qf7
{[%clk 0:01:40.7]} 17. f3 {[%clk 0:02:53.9]} 17... Nd7 {[%clk 0:01:37.1]} 18.
Kb1 {[%clk 0:02:49.9]} 18... Nc5 {[%clk 0:01:29.1]} 19. Nxc5 {[%clk 0:02:48.6]}
19... Bxc5 {[%clk 0:01:30]} 20. Bc2 {[%clk 0:02:48.5]} 20... Be7 {[%clk
0:01:18]} 21. Bc1 {[%clk 0:02:47.3]} 21... Bf6 {[%clk 0:01:14.9]} 22. h4 {[%clk
0:02:46.8]} 22... Rfe8 {[%clk 0:01:10.9]} 23. g4 {[%clk 0:02:45.5]} 23... Rad8
{[%clk 0:01:10.3]} 24. g5 {[%clk 0:02:45.4]} 24... Be5 {[%clk 0:01:10.8]} 25. h5
{[%clk 0:02:45.3]} 25... Bf4 {[%clk 0:01:09]} 26. Bxh7+ {[%clk 0:02:45.1]} 26...
Kh8 {[%clk 0:01:05.3]} 27. Bg6 {[%clk 0:02:44.9]} 27... Qf8 {[%clk 0:01:04.4]}
28. Bxe8 {[%clk 0:02:44.4]} 28... Rxe8 {[%clk 0:01:05.3]} 29. Qd3 {[%clk
0:02:38.8]} 29... Ne5 {[%clk 0:01:03.4]} 30. Qc2 {[%clk 0:02:38.2]} 30... Bxc1
{[%clk 0:00:53.9]} 31. Kxc1 {[%clk 0:02:36.2]} 31... Qxf3 {[%clk 0:00:51.5]} 32.
Kb1 {[%clk 0:02:35.3]} 32... Ng4 {[%clk 0:00:42.9]} 33. h6 {[%clk 0:02:32.9]}
33... gxh6 {[%clk 0:00:42.1]} 34. Rdf1 {[%clk 0:02:22.1]} 34... Qe4 {[%clk
0:00:31.7]} 35. Qxe4 {[%clk 0:02:21.1]} 35... dxe4 {[%clk 0:00:32.6]} 36. Rh4
{[%clk 0:02:21.4]} 36... h5 {[%clk 0:00:24.9]} 37. Rxh5+ {[%clk 0:02:20.6]}
37... Kg7 {[%clk 0:00:25.3]} 38. Rh4 {[%clk 0:02:18.6]} 38... Ne3 {[%clk
0:00:20.8]} 39. Rfh1 {[%clk 0:02:18.4]} 39... Kg6 {[%clk 0:00:18.4]} 40. Rxe4
{[%clk 0:02:17.9]} 40... Nf5 {[%clk 0:00:18.8]} 41. Rhe1 {[%clk 0:02:16.3]}
41... Kxg5 {[%clk 0:00:15]} 42. Rxe6 {[%clk 0:02:15.6]} 42... Rh8 {[%clk
0:00:15.1]} 43. Rg1+ {[%clk 0:02:15.1]} 43... Kf4 {[%clk 0:00:15]} 44. Rf1+
{[%clk 0:02:15.3]} 44... Kg4 {[%clk 0:00:14.8]} 45. Re4+ {[%clk 0:02:15.2]}
45... Kg5 {[%clk 0:00:14.7]} 46. Re5 {[%clk 0:02:15.4]} 46... Rf8 {[%clk
0:00:15.6]} 47. a4 {[%clk 0:02:14.8]} 47... Rf6 {[%clk 0:00:15.3]} 48. b4 {[%clk
0:02:13.5]} 48... Kg6 {[%clk 0:00:14.6]} 49. Kb2 {[%clk 0:02:11.4]} 49... b6
{[%clk 0:00:14.2]} 50. b5 {[%clk 0:02:10.2]} 50... Rf7 {[%clk 0:00:13.3]} 51. c4
{[%clk 0:02:10.1]} 51... Rf6 {[%clk 0:00:09.5]} 52. c5 {[%clk 0:02:09.8]} 52...
bxc5 {[%clk 0:00:09.9]} 53. a5 {[%clk 0:02:09.7]} 53... c4 {[%clk 0:00:07.3]}
54. Rfxf5 {[%clk 0:02:08.1]} 54... Rxf5 {[%clk 0:00:05.2]} 55. Rxf5 {[%clk
0:02:08.1]} 55... Kxf5 {[%clk 0:00:06.1]} 56. b6 {[%clk 0:02:08.3]} 56... axb6
{[%clk 0:00:06.6]} 57. axb6 {[%clk 0:02:07.4]} 1-0